Workbook

Sheet Retrograde
J1: % of Cells in Ect | K1: % of Cells in PRh
A2: sl6s1 | B2: 156 | C2: 213 | D2: -2.9 | E2: FBO2 | J2: =B2/B16 -> 0.1893203883 | K2: =C2/C16 -> 0.1463917526
A3: sl6s2 | B3: 208 | C3: 121 | D3: -3.1 | J3: =B3/B16 -> 0.2524271845 | K3: =C3/C16 -> 0.08316151203
A4: sl6s4 | B4: 81 | C4: 171 | D4: -3.3 | J4: =B4/B16 -> 0.09830097087 | K4: =C4/C16 -> 0.1175257732
A5: sl6s5 | B5: 51 | C5: 113 | D5: -3.5 | J5: =B5/B16 -> 0.06189320388 | K5: =C5/C16 -> 0.07766323024
A6: sl6s6 | B6: 79 | C6: 104 | D6: -3.7 | J6: =B6/B16 -> 0.09587378641 | K6: =C6/C16 -> 0.07147766323
A7: sl7s1 | B7: 87 | C7: 125 | D7: -3.9 | J7: =B7/B16 -> 0.1055825243 | K7: =C7/C16 -> 0.08591065292
A8: sl7s2 | B8: 22 | C8: 91 | D8: -4.1 | J8: =B8/B16 -> 0.02669902913 | K8: =C8/C16 -> 0.06254295533
A9: sl7s3 | B9: 11 | C9: NaN | D9: -4.3 | G9: *cannot make the right focus | J9: =B9/B16 -> 0.01334951456 | K9: NaN
A10: sl7s4 | B10: 42 | C10: 121 | D10: -4.5 | J10: =B10/B16 -> 0.05097087379 | K10: =C10/C16 -> 0.08316151203
A11: sl7s5 | B11: 29 | C11: 121 | D11: -4.7 | J11: =B11/B16 -> 0.03519417476 | K11: =C11/C16 -> 0.08316151203
A12: sl7s6 | B12: 27 | C12: 102 | D12: -4.9 | J12: =B12/B16 -> 0.03276699029 | K12: =C12/C16 -> 0.07010309278
A13: sl8s1 | B13: 17 | C13: 95 | D13: -5.1 | J13: =B13/B16 -> 0.02063106796 | K13: =C13/C16 -> 0.06529209622
A14: sl8s2 | B14: 8 | C14: 32 | D14: -5.3 | J14: =B14/B16 -> 0.009708737864 | K14: =C14/C16 -> 0.02199312715
A15: sl8s3 | B15: 6 | C15: 46 | D15: -5.5 | J15: =B15/B16 -> 0.007281553398 | K15: =C15/C16 -> 0.03161512027
A16: Total: | B16: 824 | C16: 1455
A18: sl6s1 | B18: 209 | C18: 138 | D18: -3.1 | E18: FB01 | J18: =B18/B35 -> 0.1054490414 | K18: =C18/C35 -> 0.0607661823
A19: sl6s2 | B19: 270 | C19: 209 | D19: -3.3 | J19: =B19/B35 -> 0.1362260343 | K19: =C19/C35 -> 0.09202994276
A20: sl6s3 | B20: 326 | C20: 199 | D20: -3.5 | J20: =B20/B35 -> 0.1644803229 | K20: =C20/C35 -> 0.08762659621
A21: sl6s6 | B21: 159 | C21: 162 | D21: -3.7 | J21: =B21/B35 -> 0.08022199798 | K21: =C21/C35 -> 0.071334214
A22: sl6s5 | B22: 180 | C22: 190 | D22: -3.9 | J22: =B22/B35 -> 0.09081735621 | K22: =C22/C35 -> 0.08366358432
A23: sl6s4 | B23: 153 | C23: 157 | D23: -4.1 | J23: =B23/B35 -> 0.07719475277 | K23: =C23/C35 -> 0.06913254073
A24: sl7s1 | B24: 130 | C24: 147 | D24: -4.3 | J24: =B24/B35 -> 0.06559031282 | K24: =C24/C35 -> 0.06472919419
A25: sl7s2 | B25: 139 | C25: 162 | D25: -4.5 | J25: =B25/B35 -> 0.07013118063 | K25: =C25/C35 -> 0.071334214
A26: sl7s3 | B26: 79 | C26: 128 | D26: -4.7 | J26: =B26/B35 -> 0.03985872856 | K26: =C26/C35 -> 0.05636283576
A27: sl7s4 | B27: 100 | C27: 175 | D27: -4.9 | J27: =B27/B35 -> 0.05045408678 | K27: =C27/C35 -> 0.07705856451
A28: sl7s5 | B28: 68 | C28: 114 | D28: -5.1 | J28: =B28/B35 -> 0.03430877901 | K28: =C28/C35 -> 0.05019815059
A29: sl7s6 | B29: 70 | C29: 101 | D29: -5.3 | J29: =B29/B35 -> 0.03531786075 | K29: =C29/C35 -> 0.04447380009
A30: sl8s1 | B30: 28 | C30: 119 | D30: -5.5 | J30: =B30/B35 -> 0.0141271443 | K30: =C30/C35 -> 0.05239982387
A31: sl8s2 | B31: 31 | C31: 67 | D31: -5.7 | J31: =B31/B35 -> 0.0156407669 | K31: =C31/C35 -> 0.02950242184
A32: sl8s3 | B32: 17 | C32: 59 | D32: -5.9 | J32: =B32/B35 -> 0.008577194753 | K32: =C32/C35 -> 0.02597974461
A33: sl8s4 | B33: 14 | C33: 67 | D33: -6.1 | J33: =B33/B35 -> 0.007063572149 | K33: =C33/C35 -> 0.02950242184
A34: sl9s1 | B34: 9 | C34: 77 | D34: -6.3 | J34: =B34/B35 -> 0.00454086781 | K34: =C34/C35 -> 0.03390576838
A35: Total | B35: 1982 | C35: 2271
E57: TdFB02
E74: FB04

Sheet Sheet2
